{"text_format":"1","workbook":"xlsx","n_sheets":6,"sheets":["Cfg","Global","Individuel","Bilan","Bilan_Hebdo","Bdd"],"not_rendered":{"charts":0,"images":0,"macros":0,"external_links":0,"defined_names":4,"comments":1,"pivot_tables":0},"unopened":[],"bounds":{"document_bytes":16777216,"sheet_cells":100000,"rows_first":2000,"rows_last":500,"rows_between":2000,"halvings":0,"cell_chars":16384,"cell_head_chars":4096},"cells_cut":0,"cells_raw":0,"read":"whole","date_system":"1900"}

{"sheet":"Cfg","index":0,"n_rows":18,"n_cols":15,"rows_kept":18,"cut":false,"hidden":false,"merged":[]}
["Id","Opérateur","Qualification","Activités","Client","Commande",null,"Qualification","Seuils",null,"Couleurs Seuils",null,"Durée journée de travail",null,"Incrément avancée"]
[1,"Myriam","Caissière","Caisse",null,null,null,"Chef de caisse",1,null,"Inférieur",null,"07:00:00"]
[2,"Elsa","Caissière","Accueil",null,null,null,"Caissière",5,null,"Atteint"]
[3,"Julia","Caissière","Bureau",null,null,null,"Chef de rayon",3,null,"Dépassé"]
[4,"Hervé","Caissière","Drive",null,null,null,"Magasinier",3]
[5,"Richard","Chef de caisse","Autre"]
[6,"Eléonore","Chef de caisse"]
[7,"Marion","Chef de caisse"]
[8,"Gabriel","Caissière"]
[9,"Claire","Caissière"]
[10,"Agail","Caissière"]
[11,"Caprio","Caissière"]
[12,"Malm","Chef de rayon"]
[13,"Niroban","Chef de rayon"]
[14,"Raud","Chef de rayon"]
[15,"Ellent","Magasinier"]
[16,"Lanneux","Magasinier"]
[17,"Oigueduse","Magasinier"]

{"sheet":"Global","index":1,"n_rows":70,"n_cols":104,"rows_kept":70,"cut":false,"hidden":false,"merged":[[7,0,11,0],[12,0,16,0],[17,0,21,0],[22,0,26,0],[22,1,26,1],[17,1,21,1],[12,1,16,1],[7,1,11,1],[27,0,31,0],[32,0,36,0],[37,0,41,0],[37,1,41,1],[32,1,36,1],[27,1,31,1]]}
[5]
[null,null,null,null,null,null,null,null,null,null,null,null,"Clic droit ici pour afficher le calendrier",null,null,null,null,null,null,null,null,null,null,null,null,null,null,null,null,null,null,null,null,null,null,null,null,null,null,null,null,null,null,null,null,null,null,null,null,null,null,null,null,null,null,null,null,null,null,null,null,null,null,null,null,null,null,null,null,null,null,null,null,null,null,null,null,null,null,null,null,null,null,null,null,null,null,null,null,null,null,null,null,null,null,null,null,null,null,null,null,null,null,"Fichier de sortie"]
[null,"2021-02-01"]
[]
[]
[null,null,null,null,{"$f":"\"SEMAINE du  :  \"&TEXT(B3,\"jjjj jj mmmm aaaa\")& \"  au  \"&TEXT(B3+6,\"jjjj jj mmmm aaaa\")","v":"SEMAINE du  :  lundi 01 février 2021  au  dimanche 07 février 2021"}]
[null,1,{"$f":"\"de \" &B7&\" à \"&B7+A1-1","v":"de 1 à 5"},null,"07:00:00",{"$f":"E7+1/24/4","v":"07:15:00"},"07:30:00","07:45:00","08:00:00","08:15:00","08:30:00","08:45:00","09:00:00","09:15:00","09:30:00","09:45:00","10:00:00","10:15:00","10:30:00","10:45:00","11:00:00","11:15:00","11:30:00","11:45:00","12:00:00","12:15:00","12:30:00","12:45:00","13:00:00","13:15:00","13:30:00","13:45:00","14:00:00","14:15:00","14:30:00","14:45:00","15:00:00",{"$f":"AK7+1/24/4","v":"15:15:00"},"15:30:00","15:45:00","16:00:00","16:15:00","16:30:00","16:45:00","17:00:00","17:15:00","17:30:00","17:45:00","18:00:00","18:15:00","18:30:00","18:45:00","19:00:00","19:15:00","19:30:00","19:45:00","20:00:00","20:15:00","20:30:00","20:45:00","21:00:00","21:15:00","21:30:00","21:45:00","22:00:00","22:15:00","22:30:00","22:45:00","23:00:00",{"$f":"BQ7+1/24/4","v":"23:15:00"},"23:30:00","23:45:00",0.99999999999999856,1.0104166666666652,1.0208333333333319,1.0312499999999987,1.0416666666666654,1.0520833333333321,1.0624999999999989,1.0729166666666656,1.0833333333333324,1.0937499999999991,1.1041666666666659,1.1145833333333326,1.1249999999999993,1.1354166666666661,1.1458333333333328,1.1562499999999996,1.1666666666666663,1.177083333333333,1.1874999999999998,1.1979166666666665,1.2083333333333333,1.21875,1.2291666666666667,1.2395833333333335,1.2500000000000002,1.260416666666667,1.2708333333333337,1.2812500000000004,1.2916666666666672,null,"Total/jour"]
["Heure d'hiver",{"$f":"B3","v":"2021-02-01"},"Myriam","Caissière"," "]
[null,null,"Elsa","Caissière"]
[null,null,"Julia","Caissière"]
[null,null,"Hervé","Caissière"]
[null,null,"Richard","Chef de caisse"," "]
["Heure d'hiver",{"$f":"B3+1","v":"2021-02-02"},"Myriam","Caissière"," "]
[null,null,"Elsa","Caissière"]
[null,null,"Julia","Caissière"]
[null,null,"Hervé","Caissière"]
[null,null,"Richard","Chef de caisse"," "]
["Heure d'hiver",{"$f":"B3+2","v":"2021-02-03"},"Myriam","Caissière"," "]
[null,null,"Elsa","Caissière"]
[null,null,"Julia","Caissière"]
[null,null,"Hervé","Caissière"]
[null,null,"Richard","Chef de caisse"," "]
["Heure d'hiver",{"$f":"B3+3","v":"2021-02-04"},"Myriam","Caissière"," "]
[null,null,"Elsa","Caissière"]
[null,null,"Julia","Caissière"]
[null,null,"Hervé","Caissière"]
[null,null,"Richard","Chef de caisse"," "]
["Heure d'hiver",{"$f":"B3+4","v":"2021-02-05"},"Myriam","Caissière"," "]
[null,null,"Elsa","Caissière"]
[null,null,"Julia","Caissière"]
[null,null,"Hervé","Caissière"]
[null,null,"Richard","Chef de caisse"," "]
["Heure d'hiver",{"$f":"B3+5","v":"2021-02-06"},"Myriam","Caissière"," "]
[null,null,"Elsa","Caissière"]
[null,null,"Julia","Caissière"]
[null,null,"Hervé","Caissière"]
[null,null,"Richard","Chef de caisse"," "]
["Heure d'hiver",{"$f":"B3+6","v":"2021-02-07"},"Myriam","Caissière"," "]
[null,null,"Elsa","Caissière"]
[null,null,"Julia","Caissière"]
[null,null,"Hervé","Caissière"]
[null,null,"Richard","Chef de caisse"," "]
[null,null,{"$f":"\"Total global = \"&TEXT(SUM(CY8:CY42),\"[h]:mm\")","v":"Total global = 0:00"},null,{"$f":"E7","v":"07:00:00"},{"$f":"E43+1/24/4","v":"07:15:00"},"07:30:00","07:45:00","08:00:00","08:15:00","08:30:00","08:45:00","09:00:00","09:15:00","09:30:00","09:45:00","10:00:00","10:15:00","10:30:00","10:45:00","11:00:00","11:15:00","11:30:00","11:45:00","12:00:00","12:15:00","12:30:00","12:45:00","13:00:00","13:15:00","13:30:00","13:45:00","14:00:00","14:15:00","14:30:00","14:45:00","15:00:00",{"$f":"AK43+1/24/4","v":"15:15:00"},"15:30:00","15:45:00","16:00:00","16:15:00","16:30:00","16:45:00","17:00:00","17:15:00","17:30:00","17:45:00","18:00:00","18:15:00","18:30:00","18:45:00","19:00:00","19:15:00","19:30:00","19:45:00","20:00:00","20:15:00","20:30:00","20:45:00","21:00:00","21:15:00","21:30:00","21:45:00","22:00:00","22:15:00","22:30:00","22:45:00","23:00:00",{"$f":"BQ43+1/24/4","v":"23:15:00"},"23:30:00","23:45:00",0.99999999999999856,1.0104166666666652,1.0208333333333319,1.0312499999999987,1.0416666666666654,1.0520833333333321,1.0624999999999989,1.0729166666666656,1.0833333333333324,1.0937499999999991,1.1041666666666659,1.1145833333333326,1.1249999999999993,1.1354166666666661,1.1458333333333328,1.1562499999999996,1.1666666666666663,1.177083333333333,1.1874999999999998,1.1979166666666665,1.2083333333333333,1.21875,1.2291666666666667,1.2395833333333335,1.2500000000000002,1.260416666666667,1.2708333333333337,1.2812500000000004,1.2916666666666672]
[null,null,{"$f":"\"Total global = \"&TEXT(SUM(CY8:CY42)*24,\"#0,00\")","v":"Total global = 0,00"}]
[]
[]
[]
[]
[]
[]
[]
[]
[]
[]
[]
[]
[]
[]
[]
[]
[]
[]
[]
[]
[]
[]
[]
[]
[]
[null,null,null,null,null,null,null,null,null,null,null,null,null,null,null,null,null,null,null,null,null,null,null,null,null,null,null,null,null,null,null,null,null,null,null,null,null,null,null,null,null,null,null,null,null,null,null,null,null,null,null,null,null,null,null,null,null,null,null,null,null,null,null,null,null,null,null,null,null,null,null,null,null,null,null,null,null,null,null,null,null,null,null,null,null,null,null,null,null,null,null,null,null,null,null,null,null,null,null,null,null,null,"10:30:00"]

{"sheet":"Individuel","index":2,"n_rows":38,"n_cols":103,"rows_kept":38,"cut":false,"hidden":false,"merged":[]}
[]
[null,null,null,null,"Clic droit ici pour afficher le calendrier"]
[null,"2021-02-01"]
[]
[]
[null,null,null,null,{"$f":"\"SEMAINE du  :  \"&TEXT(B3,\"jjjj jj mmmm aaaa\")& \"  au  \"&TEXT(B3+6,\"jjjj jj mmmm aaaa\")","v":"SEMAINE du  :  lundi 01 février 2021  au  dimanche 07 février 2021"}]
[null,"Elsa",null,null,{"$f":"Global!E7","v":"07:00:00"},{"$f":"E7+1/24/4","v":"07:15:00"},"07:30:00","07:45:00","08:00:00","08:15:00","08:30:00","08:45:00","09:00:00","09:15:00","09:30:00","09:45:00","10:00:00","10:15:00","10:30:00","10:45:00","11:00:00","11:15:00","11:30:00","11:45:00","12:00:00","12:15:00","12:30:00","12:45:00","13:00:00","13:15:00","13:30:00","13:45:00","14:00:00","14:15:00","14:30:00","14:45:00","15:00:00",{"$f":"AK7+1/24/4","v":"15:15:00"},"15:30:00","15:45:00","16:00:00","16:15:00","16:30:00","16:45:00","17:00:00","17:15:00","17:30:00","17:45:00","18:00:00","18:15:00","18:30:00","18:45:00","19:00:00","19:15:00","19:30:00","19:45:00","20:00:00","20:15:00","20:30:00","20:45:00","21:00:00","21:15:00","21:30:00","21:45:00","22:00:00","22:15:00","22:30:00","22:45:00","23:00:00",{"$f":"BQ7+1/24/4","v":"23:15:00"},"23:30:00","23:45:00",0.99999999999999856,1.0104166666666652,1.0208333333333319,1.0312499999999987,1.0416666666666654,1.0520833333333321,1.0624999999999989,1.0729166666666656,1.0833333333333324,1.0937499999999991,1.1041666666666659,1.1145833333333326,1.1249999999999993,1.1354166666666661,1.1458333333333328,1.1562499999999996,1.1666666666666663,1.177083333333333,1.1874999999999998,1.1979166666666665,1.2083333333333333,1.21875,1.2291666666666667,1.2395833333333335,1.2500000000000002,1.260416666666667,1.2708333333333337,1.2812500000000004,1.2916666666666672,null,"Total journée"]
[null,{"$f":"B3","v":"2021-02-01"}]
[null,{"$f":"B8+1","v":"2021-02-02"}]
[null,{"$f":"B9+1","v":"2021-02-03"}]
[null,"2021-02-04"]
[null,"2021-02-05"]
[null,"2021-02-06"]
[null,"2021-02-07"]
[null,{"$f":"\"Total semaine = \"&TEXT(SUM(CY8:CY14),\"[h]:mm\")","v":"Total semaine = 0:00"},null,null,{"$f":"E7","v":"07:00:00"},{"$f":"E15+1/24/4","v":"07:15:00"},"07:30:00","07:45:00","08:00:00","08:15:00","08:30:00","08:45:00","09:00:00","09:15:00","09:30:00","09:45:00","10:00:00","10:15:00","10:30:00","10:45:00","11:00:00","11:15:00","11:30:00","11:45:00","12:00:00","12:15:00","12:30:00","12:45:00","13:00:00","13:15:00","13:30:00","13:45:00","14:00:00","14:15:00","14:30:00","14:45:00","15:00:00",{"$f":"AK15+1/24/4","v":"15:15:00"},"15:30:00","15:45:00","16:00:00","16:15:00","16:30:00","16:45:00","17:00:00","17:15:00","17:30:00","17:45:00","18:00:00","18:15:00","18:30:00","18:45:00","19:00:00","19:15:00","19:30:00","19:45:00","20:00:00","20:15:00","20:30:00","20:45:00","21:00:00","21:15:00","21:30:00","21:45:00","22:00:00","22:15:00","22:30:00","22:45:00","23:00:00",{"$f":"BQ15+1/24/4","v":"23:15:00"},"23:30:00","23:45:00",0.99999999999999856,1.0104166666666652,1.0208333333333319,1.0312499999999987,1.0416666666666654,1.0520833333333321,1.0624999999999989,1.0729166666666656,1.0833333333333324,1.0937499999999991,1.1041666666666659,1.1145833333333326,1.1249999999999993,1.1354166666666661,1.1458333333333328,1.1562499999999996,1.1666666666666663,1.177083333333333,1.1874999999999998,1.1979166666666665,1.2083333333333333,1.21875,1.2291666666666667,1.2395833333333335,1.2500000000000002,1.260416666666667,1.2708333333333337,1.2812500000000004,1.2916666666666672]
[null,{"$f":"\"Total semaine = \"&TEXT(SUM(CY8:CY14)*24,\"#0,00\")","v":"Total semaine = 0,00"},"Total global = 13,50"]
[]
[null,null,null,null,null,null,null,null,null,null,null,null,null,null,null,null,null,null,null,null,null,null,null,null,null,null,null,null,null,null,null,null,null,null,null,null,null,null,null,null,null,null,null,null,null,null,null,null,null,null,null,null,null,null,null,null,null,null,null,null,null,null,null,null,null,null,null,null,null,null,null,null,null,null,null,null,null,null,null,null,null,null,null,null,null,null,null,null,null,null,null,null,null,null,null,null,null,null,null,null,null,null,0.5]
[null,null,null,null,null,null,null,null,null,null,null,null,null,null,null,null,null,null,null,null,null,null,null,null,null,null,null,null,null,null,null,null,null,null,null,null,null,null,null,null,null,null,null,null,null,null,null,null,null,null,null,null,null,null,null,null,null,null,null,null,null,null,null,null,null,null,null,null,null,null,null,null,null,null,null,null,null,null,null,null,null,null,null,null,null,null,null,null,null,null,null,null,null,null,null,null,null,null,null,null,null,null,0.58194446563720703]
[]
[]
[]
[null,null,null,null,null,null,null,null,null,null,null,null,null,null,null,null,null,null,null,null,null,null,null,null,null,null,null,null,null,null,null,null,null,null,null,null,null,null,null,null,null,null,null,null,null,null,null,null,null,null,null,null,null,null,null,null,null,null,null,null,null,null,null,null,null,null,null,null,null,null,null,null,null,null,null,null,null,null,null,null,null,null,null,null,null,null,null,null,null,null,null,null,null,null,null,null,null,null,null,null,null,null,0.58194446563720703]
[null,null,null,null,null,null,null,null,null,null,null,null,null,null,null,null,null,null,null,null,null,null,null,null,null,null,null,null,null,null,null,null,null,null,null,null,null,null,null,null,null,null,null,null,null,null,null,null,null,null,null,null,null,null,null,null,null,null,null,null,null,null,null,null,null,null,null,null,null,null,null,null,null,null,null,null,null,null,null,null,null,null,null,null,null,null,null,null,null,null,null,null,null,null,null,null,null,null,null,null,null,null,0.3958333432674408]
[]
[]
[]
[null,null,null,null,null,null,null,null,null,null,null,null,null,null,null,null,null,null,null,null,null,null,null,null,null,null,null,null,null,null,null,null,null,null,null,null,null,null,null,null,null,null,null,null,null,null,null,null,null,null,null,null,null,null,null,null,null,null,null,null,null,null,null,null,null,null,null,null,null,null,null,null,null,null,null,null,null,null,null,null,null,null,null,null,null,null,null,null,null,null,null,null,null,null,null,null,null,null,null,null,null,null,0.66666668653488159]
[]
[]
[]
[]
[null,null,null,null,null,null,null,null,null,null,null,null,null,null,null,null,null,null,null,null,null,null,null,null,null,null,null,null,null,null,null,null,null,null,null,null,null,null,null,null,null,null,null,null,null,null,null,null,null,null,null,null,null,null,null,null,null,null,null,null,null,null,null,null,null,null,null,null,null,null,null,null,null,null,null,null,null,null,null,null,null,null,null,null,null,null,null,null,null,null,null,null,null,null,null,null,null,null,null,null,null,null,0.66666668653488159]
[]
[]
[]
[]
[null,null,null,null,null,null,null,null,null,null,null,null,null,null,null,null,null,null,null,null,null,null,null,null,null,null,null,null,null,null,null,null,null,null,null,null,null,null,null,null,null,null,null,null,null,null,null,null,null,null,null,null,null,null,null,null,null,null,null,null,null,null,null,null,null,null,null,null,null,null,null,null,null,null,null,null,null,null,null,null,null,null,null,null,null,null,null,null,null,null,null,null,null,null,null,null,null,null,null,null,null,null,0.83194446563720703]

{"sheet":"Bilan","index":3,"n_rows":155,"n_cols":16,"rows_kept":155,"cut":false,"hidden":false,"merged":[]}
[]
[null,null,null,null,null,"JOURS OUVRÉS MENSUELS"]
[null,null,22,20,22,21,18,21,22,21,22,22,20,22]
[]
[]
[null,null,"Bilan annuel des heures travaillées"]
[null,null,null,null,null,null,null,null,null,null,null,null,null,null,null,"Total annuel"]
[null,null,null,null,null,null,null,null,null,null,null,null,null,null,null,{"$f":"IF(ISBLANK(A8),\"\",SUM(C8:N8))","v":""}]
[null,null,null,null,null,null,null,null,null,null,null,null,null,null,null,{"$f":"IF(ISBLANK(A9),\"\",SUM(C9:N9))","v":""}]
[null,null,null,null,null,null,null,null,null,null,null,null,null,null,null,""]
[null,null,null,null,null,null,null,null,null,null,null,null,null,null,null,""]
[null,null,null,null,null,null,null,null,null,null,null,null,null,null,null,""]
[null,null,null,null,null,null,null,null,null,null,null,null,null,null,null,""]
[null,null,null,null,null,null,null,null,null,null,null,null,null,null,null,""]
[null,null,null,null,null,null,null,null,null,null,null,null,null,null,null,""]
[null,null,null,null,null,null,null,null,null,null,null,null,null,null,null,""]
[null,null,null,null,null,null,null,null,null,null,null,null,null,null,null,""]
[null,null,null,null,null,null,null,null,null,null,null,null,null,null,null,""]
[null,null,null,null,null,null,null,null,null,null,null,null,null,null,null,""]
[null,null,null,null,null,null,null,null,null,null,null,null,null,null,null,""]
[null,null,null,null,null,null,null,null,null,null,null,null,null,null,null,""]
[null,null,null,null,null,null,null,null,null,null,null,null,null,null,null,""]
[null,null,null,null,null,null,null,null,null,null,null,null,null,null,null,""]
[null,null,null,null,null,null,null,null,null,null,null,null,null,null,null,""]
[null,null,null,null,null,null,null,null,null,null,null,null,null,null,null,""]
[null,null,null,null,null,null,null,null,null,null,null,null,null,null,null,""]
[null,null,null,null,null,null,null,null,null,null,null,null,null,null,null,""]
[null,null,null,null,null,null,null,null,null,null,null,null,null,null,null,""]
[null,null,null,null,null,null,null,null,null,null,null,null,null,null,null,""]
[null,null,null,null,null,null,null,null,null,null,null,null,null,null,null,""]
[null,null,null,null,null,null,null,null,null,null,null,null,null,null,null,""]
[null,null,null,null,null,null,null,null,null,null,null,null,null,null,null,""]
[null,null,null,null,null,null,null,null,null,null,null,null,null,null,null,""]
[null,null,null,null,null,null,null,null,null,null,null,null,null,null,null,""]
[null,null,null,null,null,null,null,null,null,null,null,null,null,null,null,""]
[null,null,null,null,null,null,null,null,null,null,null,null,null,null,null,""]
[null,null,null,null,null,null,null,null,null,null,null,null,null,null,null,""]
[null,null,null,null,null,null,null,null,null,null,null,null,null,null,null,""]
[null,null,null,null,null,null,null,null,null,null,null,null,null,null,null,""]
[null,null,null,null,null,null,null,null,null,null,null,null,null,null,null,""]
[null,null,null,null,null,null,null,null,null,null,null,null,null,null,null,""]
[null,null,null,null,null,null,null,null,null,null,null,null,null,null,null,""]
[null,null,null,null,null,null,null,null,null,null,null,null,null,null,null,""]
[null,null,null,null,null,null,null,null,null,null,null,null,null,null,null,""]
[null,null,null,null,null,null,null,null,null,null,null,null,null,null,null,""]
[null,null,null,null,null,null,null,null,null,null,null,null,null,null,null,""]
[null,null,null,null,null,null,null,null,null,null,null,null,null,null,null,""]
[null,null,null,null,null,null,null,null,null,null,null,null,null,null,null,""]
[null,null,null,null,null,null,null,null,null,null,null,null,null,null,null,""]
[null,null,null,null,null,null,null,null,null,null,null,null,null,null,null,""]
[null,null,null,null,null,null,null,null,null,null,null,null,null,null,null,""]
[null,null,null,null,null,null,null,null,null,null,null,null,null,null,null,""]
[null,null,null,null,null,null,null,null,null,null,null,null,null,null,null,""]
[null,null,null,null,null,null,null,null,null,null,null,null,null,null,null,""]
[null,null,null,null,null,null,null,null,null,null,null,null,null,null,null,""]
[null,null,null,null,null,null,null,null,null,null,null,null,null,null,null,""]
[null,null,null,null,null,null,null,null,null,null,null,null,null,null,null,""]
[null,null,null,null,null,null,null,null,null,null,null,null,null,null,null,""]
[null,null,null,null,null,null,null,null,null,null,null,null,null,null,null,""]
[null,null,null,null,null,null,null,null,null,null,null,null,null,null,null,""]
[null,null,null,null,null,null,null,null,null,null,null,null,null,null,null,""]
[null,null,null,null,null,null,null,null,null,null,null,null,null,null,null,""]
[null,null,null,null,null,null,null,null,null,null,null,null,null,null,null,""]
[null,null,null,null,null,null,null,null,null,null,null,null,null,null,null,""]
[null,null,null,null,null,null,null,null,null,null,null,null,null,null,null,""]
[null,null,null,null,null,null,null,null,null,null,null,null,null,null,null,""]
[null,null,null,null,null,null,null,null,null,null,null,null,null,null,null,""]
[null,null,null,null,null,null,null,null,null,null,null,null,null,null,null,""]
[null,null,null,null,null,null,null,null,null,null,null,null,null,null,null,""]
[null,null,null,null,null,null,null,null,null,null,null,null,null,null,null,""]
[null,null,null,null,null,null,null,null,null,null,null,null,null,null,null,""]
[null,null,null,null,null,null,null,null,null,null,null,null,null,null,null,""]
[null,null,null,null,null,null,null,null,null,null,null,null,null,null,null,{"$f":"IF(ISBLANK(A73),\"\",SUM(C73:N73))","v":""}]
[null,null,null,null,null,null,null,null,null,null,null,null,null,null,null,""]
[null,null,null,null,null,null,null,null,null,null,null,null,null,null,null,""]
[null,null,null,null,null,null,null,null,null,null,null,null,null,null,null,""]
[null,null,null,null,null,null,null,null,null,null,null,null,null,null,null,""]
[null,null,null,null,null,null,null,null,null,null,null,null,null,null,null,""]
[null,null,null,null,null,null,null,null,null,null,null,null,null,null,null,""]
[null,null,null,null,null,null,null,null,null,null,null,null,null,null,null,""]
[null,null,null,null,null,null,null,null,null,null,null,null,null,null,null,""]
[null,null,null,null,null,null,null,null,null,null,null,null,null,null,null,""]
[null,null,null,null,null,null,null,null,null,null,null,null,null,null,null,""]
[null,null,null,null,null,null,null,null,null,null,null,null,null,null,null,""]
[null,null,null,null,null,null,null,null,null,null,null,null,null,null,null,""]
[null,null,null,null,null,null,null,null,null,null,null,null,null,null,null,""]
[null,null,null,null,null,null,null,null,null,null,null,null,null,null,null,""]
[null,null,null,null,null,null,null,null,null,null,null,null,null,null,null,""]
[null,null,null,null,null,null,null,null,null,null,null,null,null,null,null,""]
[null,null,null,null,null,null,null,null,null,null,null,null,null,null,null,""]
[null,null,null,null,null,null,null,null,null,null,null,null,null,null,null,""]
[null,null,null,null,null,null,null,null,null,null,null,null,null,null,null,""]
[null,null,null,null,null,null,null,null,null,null,null,null,null,null,null,""]
[null,null,null,null,null,null,null,null,null,null,null,null,null,null,null,""]
[null,null,null,null,null,null,null,null,null,null,null,null,null,null,null,""]
[null,null,null,null,null,null,null,null,null,null,null,null,null,null,null,""]
[null,null,null,null,null,null,null,null,null,null,null,null,null,null,null,""]
[null,null,null,null,null,null,null,null,null,null,null,null,null,null,null,""]
[null,null,null,null,null,null,null,null,null,null,null,null,null,null,null,""]
[null,null,null,null,null,null,null,null,null,null,null,null,null,null,null,""]
[null,null,null,null,null,null,null,null,null,null,null,null,null,null,null,""]
[null,null,null,null,null,null,null,null,null,null,null,null,null,null,null,""]
[null,null,null,null,null,null,null,null,null,null,null,null,null,null,null,""]
[null,null,null,null,null,null,null,null,null,null,null,null,null,null,null,""]
[null,null,null,null,null,null,null,null,null,null,null,null,null,null,null,""]
[null,null,null,null,null,null,null,null,null,null,null,null,null,null,null,""]
[null,null,null,null,null,null,null,null,null,null,null,null,null,null,null,""]
[null,null,null,null,null,null,null,null,null,null,null,null,null,null,null,""]
[null,null,null,null,null,null,null,null,null,null,null,null,null,null,null,""]
[null,null,null,null,null,null,null,null,null,null,null,null,null,null,null,""]
[null,null,null,null,null,null,null,null,null,null,null,null,null,null,null,""]
[null,null,null,null,null,null,null,null,null,null,null,null,null,null,null,""]
[null,null,null,null,null,null,null,null,null,null,null,null,null,null,null,""]
[null,null,null,null,null,null,null,null,null,null,null,null,null,null,null,""]
[null,null,null,null,null,null,null,null,null,null,null,null,null,null,null,""]
[null,null,null,null,null,null,null,null,null,null,null,null,null,null,null,""]
[null,null,null,null,null,null,null,null,null,null,null,null,null,null,null,""]
[null,null,null,null,null,null,null,null,null,null,null,null,null,null,null,""]
[null,null,null,null,null,null,null,null,null,null,null,null,null,null,null,""]
[null,null,null,null,null,null,null,null,null,null,null,null,null,null,null,""]
[null,null,null,null,null,null,null,null,null,null,null,null,null,null,null,""]
[null,null,null,null,null,null,null,null,null,null,null,null,null,null,null,""]
[null,null,null,null,null,null,null,null,null,null,null,null,null,null,null,""]
[null,null,null,null,null,null,null,null,null,null,null,null,null,null,null,""]
[null,null,null,null,null,null,null,null,null,null,null,null,null,null,null,""]
[null,null,null,null,null,null,null,null,null,null,null,null,null,null,null,""]
[null,null,null,null,null,null,null,null,null,null,null,null,null,null,null,""]
[null,null,null,null,null,null,null,null,null,null,null,null,null,null,null,""]
[null,null,null,null,null,null,null,null,null,null,null,null,null,null,null,""]
[null,null,null,null,null,null,null,null,null,null,null,null,null,null,null,""]
[null,null,null,null,null,null,null,null,null,null,null,null,null,null,null,""]
[null,null,null,null,null,null,null,null,null,null,null,null,null,null,null,""]
[null,null,null,null,null,null,null,null,null,null,null,null,null,null,null,""]
[null,null,null,null,null,null,null,null,null,null,null,null,null,null,null,""]
[null,null,null,null,null,null,null,null,null,null,null,null,null,null,null,""]
[null,null,null,null,null,null,null,null,null,null,null,null,null,null,null,""]
[null,null,null,null,null,null,null,null,null,null,null,null,null,null,null,{"$f":"IF(ISBLANK(A137),\"\",SUM(C137:N137))","v":""}]
[null,null,null,null,null,null,null,null,null,null,null,null,null,null,null,""]
[null,null,null,null,null,null,null,null,null,null,null,null,null,null,null,""]
[null,null,null,null,null,null,null,null,null,null,null,null,null,null,null,""]
[null,null,null,null,null,null,null,null,null,null,null,null,null,null,null,""]
[null,null,null,null,null,null,null,null,null,null,null,null,null,null,null,""]
[null,null,null,null,null,null,null,null,null,null,null,null,null,null,null,""]
[null,null,null,null,null,null,null,null,null,null,null,null,null,null,null,""]
[null,null,null,null,null,null,null,null,null,null,null,null,null,null,null,""]
[null,null,null,null,null,null,null,null,null,null,null,null,null,null,null,""]
[null,null,null,null,null,null,null,null,null,null,null,null,null,null,null,""]
[null,null,null,null,null,null,null,null,null,null,null,null,null,null,null,""]
[null,null,null,null,null,null,null,null,null,null,null,null,null,null,null,""]
[null,null,null,null,null,null,null,null,null,null,null,null,null,null,null,""]
[null,null,null,null,null,null,null,null,null,null,null,null,null,null,null,""]
[null,null,null,null,null,null,null,null,null,null,null,null,null,null,null,""]
[null,null,null,null,null,null,null,null,null,null,null,null,null,null,null,""]
[null,null,null,null,null,null,null,null,null,null,null,null,null,null,null,""]
[null,null,null,null,null,null,null,null,null,null,null,null,null,null,null,""]

{"sheet":"Bilan_Hebdo","index":4,"n_rows":10,"n_cols":55,"rows_kept":10,"cut":false,"hidden":false,"merged":[]}
[]
[]
[]
[]
[]
[null,null,"Bilan des heures travaillées par semaines de l'année"]
["Id","Semaines :",1,2,3,4,5,6,7,8,9,10,11,12,13,14,15,16,17,18,19,20,21,22,23,24,25,26,27,28,29,30,31,32,33,34,35,36,37,38,39,40,41,42,43,44,45,46,47,48,49,50,51,52,53]
[1,"Myriam",0,0,0,0,0,0,0,0,0,0,0,0,0,0,0,0,0,0,0,0,0,0,0,0,0,0,0,0,0,0,0,0,0,0,0,0,0,0,0,0,0,0,0,0,0,0,0,9.375E-2,0,0,0,0,0]
[2,"Elsa",0,0,0,0,0,0,0,0,0,0,0,0,0,0,0,0,0,0,0,0,0,0,0,0,0,0,0,0,0,0,0,0,0,0,0,0,0,0,0,0,0,0,0,0,0,0,0,9.375E-2,0,0,0,0,0]
[3,"Julia",0,0,0,0,0,0,0,0,0,0,0,0,0,0,0,0,0,0,0,0,0,0,0,0,0,0,0,0,0,0,0,0,0,0,0,0,0,0,0,0,0,0,0,0,0,0,0,7.916666567325592E-2,0,0,0,0,0]

{"sheet":"Bdd","index":5,"n_rows":2,"n_cols":11,"rows_kept":2,"cut":false,"hidden":true,"merged":[]}
["Id_Bdd","Id","Opérateur","Début","Durée",{"$f":"Cfg!D1","v":"Activités"},{"$f":"Cfg!E1","v":"Client"},{"$f":"Cfg!F1","v":"Commande"},"Réalisé","Absence","Sem"]
[0,0,"Ne pas Effacer",43820.4375,43820.5,"Ne pas Effacer","Ne pas Effacer","Ne pas Effacer cette ligne 0",0,"Ne pas Effacer cette ligne 0",0]